[Event "Bangabandhu Premier Div League 2022"]
[Site "Dhaka"]
[Date "2022.11.30"]
[Round "1.10"]
[White "Koustav Chatterjee"]
[Black "Aaryan Varshney"]
[Result "1/2-1/2"]
[ECO "C97"]
[WhiteElo "2496"]
[BlackElo "2312"]
[Annotator "TA"]
[PlyCount "196"]
[EventDate "2022.11.30"]
[EventType "team-tourn"]
[EventCountry "BAN"]
[SourceTitle "playchess.com"]
[Source "ChessBase"]
[SourceQuality "1"]
[TimeControl "40/5400+30:1800+30"]

{[%evp 23,196,12,34,33,41,37,56,51,58,52,52,55,70,64,67,36,46,44,62,52,78,55,70,55,71,51,47,36,55,59,67,60,66,62,66,64,74,66,68,67,60,60,81,74,92,92,92,86,92,77,79,79,100,93,97,90,109,79,193,200,220,114,104,114,105,108,172,172,172,172,238,197,235,160,193,175,272,268,203,172,193,67,64,66,70,66,72,72,81,34,48,56,136,136,136,136,136,136,136,136,136,136,136,136,136,124,136,136,136,136,136,104,136,98,106,98,98,0,112,112,136,136,136,136,136,0,136,0,136,0,136,136,135,135,135,135,135,121,135,106,160,160,229,229,229,229,229,229,231,231,231,229,229,229,229,229,229,229,231,231,231,229,229,229,229,160,229,160,153,139,154,0,154,0,139]} 1. e4 {[%emt 0:00:28]} e5 {[%emt 0:00:07]} 2. Nf3 {[%emt 0:00:05]} Nc6 {[%emt 0:00:05]} 3. Bb5 {[%emt 0:00:04]} a6 {[%emt 0:00:06]} 4. Ba4 {[%emt 0:00:05]} Nf6 {[%emt 0:00:05]} 5. O-O {[%emt 0:00:06]} Be7 {[%emt 0:00:13]} 6. Re1 {[%emt 0:00:06]} b5 {[%emt 0:00:04]} 7. Bb3 {[%emt 0:00:04]} O-O {[%emt 0:00:07]} 8. c3 {[%emt 0:00:03]} d6 {[%emt 0:00:05]} 9. h3 {[%emt 0:00:05]} Na5 {[%emt 0:00:04]} 10. Bc2 {[%emt 0:00:04]} c5 {[%emt 0:00:04]} 11. d4 {[%emt 0:00:04]} Qc7 {[%emt 0:00:06]} 12. d5 {[%emt 0:00:04]} Bd7 {[%emt 0:00:16]} 13. b3 {[%emt 0:00:08] C97: Closed Ruy Lopez: Chigorin Defence: 11 d4 Qc7, sidelines.} Nb7 {[%emt 0:01:18]} 14. c4 {[%emt 0:00:07]} Na5 {[%emt 0:06:10]} 15. Bd3 {[%emt 0:15:38] White is slightly better.} Rfb8 {[%emt 0:06:47]} 16. Nc3 {[%emt 0:12:49]} bxc4 {[%emt 0:03:01]} 17. bxc4 {[%emt 0:00:48]} Rb4 {[%emt 0:00:16] [#]} 18. Ba3 $146 {[%emt 0:13:27]} ({Predecessor:} 18. Qc2 Rab8 19. Ne2 Ba4 20. Qc3 Nh5 21. Bd2 Bd8 22. Qc1 Rb2 23. g4 Nf6 24. Ng3 {1-0 (65) Diaz Almaguer,B (2249)-Hernandez Izquierdo,A ICCF email 2016}) 18... Rb7 {[%emt 0:02:57]} 19. Rc1 {[%emt 0:05:10]} Rbb8 {[%emt 0:13:27]} 20. Ne2 {[%emt 0:04:48]} Nb7 21. Rc3 Qa5 22. Bc2 {[%emt 0:12:00]} Nh5 {[%emt 0:06:24]} 23. Qd3 g6 24. g4 {[%emt 0:06:17]} Ng7 {[%emt 0:04:23]} 25. Ng3 {[%emt 0:30:30]} Nd8 {[%emt 0:10:59]} 26. Bc1 {[%emt 0:00:00]} f6 27. Kh2 {[%emt 0:00:00]} Nf7 {[%emt 0:06:45]} 28. Ra3 {[%emt 0:00:00]} Qc7 {[%emt 0:01:11]} 29. Bd2 {[%emt 0:00:00]} Ng5 {[%emt 0:04:12]} 30. Nxg5 {[%emt 0:00:00]} fxg5 {[%emt 0:01:00]} 31. Ba4 {[%emt 0:00:00]} Bxa4 {[%emt 0:04:38]} 32. Rxa4 {[%emt 0:00:00]} Rb2 {[%emt 0:01:08]} 33. Rb1 {[%emt 0:00:00]} Qb7 {[%emt 0:01:49]} 34. Rxb2 {[%emt 0:00:00]} Qxb2 {[%emt 0:00:03]} 35. Ne2 {[%emt 0:00:00]} h6 {[%emt 0:03:57]} 36. Nc1 {[%emt 0:00:00]} Qb7 {[%emt 0:04:15]} 37. Ra3 {[%emt 0:02:40]} Rb8 {[%emt 0:05:25]} 38. Qb3 {[%emt 0:00:07]} Qc8 {[%emt 0:04:09]} 39. Qa4 {[%emt 0:00:06]} Rb2 {[%emt 0:04:56]} 40. Nb3 {[%emt 0:01:08]} Rc2 {[%emt 0:01:36]} (40... Qf8 $16 {is a better defense.} 41. Kg2 Ne8) 41. Be3 $18 {[%emt 0:31:49][%cal Ob3c5] Threatens to win with Nxc5!} Rc3 {[%emt 0:30:51]} 42. Na5 {[%emt 0:00:47]} (42. Qc6 $1 $18 {[%cal Rc6c8]} Qxc6 43. dxc6) 42... Rxa3 $16 {[%emt 0:00:19]} 43. Qxa3 {[%emt 0:00:02]} Ne8 {[%emt 0:01:19]} 44. Nc6 {[%emt 0:00:41]} Bf8 {[%emt 0:05:42]} (44... Kf7 $16) 45. Qb3 $18 {[%emt 0:01:13]} Nf6 {[%emt 0:00:30]} 46. f3 {[%emt 0:00:00]} Nd7 {[%emt 0:00:00]} (46... Qc7 $142 47. Qb8 Qxb8 48. Nxb8 Kf7) 47. h4 $1 {[%emt 0:00:00]} gxh4 {[%emt 0:00:00] [#]} 48. Bxh6 {[%emt 0:00:00][%mdl 576]} Nf6 {[%emt 0:00:00][%cal Bd7f6,Bf6h7,Bh7g5][%mdl 32]} 49. Kh3 {[%emt 0:00:00]} Qe8 {[%emt 0:00:00]} (49... Qc7 {was worth a try.}) 50. Bg5 {[%emt 0:00:00]} Nh7 {[%emt 0:00:00]} 51. Bxh4 {[%emt 0:00:00]} Qf7 {[%emt 0:00:00]} 52. Bg3 {[%emt 0:00:00] Inhibits Qf4.} (52. Qe3 $18) 52... Ng5+ $14 {[%emt 0:00:00]} 53. Kg2 $1 {[%emt 0:00:00] Hoping for Qe3.} Qh7 {[%emt 0:00:00] And now ...Qh3+ would win.} 54. Qb1 {[%emt 0:00:00] Active counter play!} Qf7 {[%emt 0:00:00]} 55. Qd1 $36 {[%emt 0:00:00][%mdl 2048] White is on the roll.} Qh7 {[%emt 0:00:00] Against Bh4} 56. Na5 {[%emt 0:01:34]} (56. Qg1 $16) 56... Qh3+ {[%emt 0:02:43]} 57. Kf2 {[%emt 0:00:02]} Bh6 {[%emt 0:00:24] [#]} (57... Be7 $14) 58. Qg1 $1 $16 {[%emt 0:02:53]} ({Much worse is} 58. Nc6 $6 Nf7 $11) 58... Nf7 {[%emt 0:02:42] [#]} 59. Qh2 $1 {[%emt 0:02:34]} Qxh2+ {[%emt 0:00:16]} 60. Bxh2 {[%emt 0:00:01][%mdl 4096] Endgame KBN-KBN} Kf8 {[%emt 0:00:45]} 61. Nc6 {[%emt 0:01:10]} Ke8 {[%emt 0:00:30]} 62. Ke2 {[%emt 0:00:24]} Kd7 {[%emt 0:00:32]} 63. Bg3 {[%emt 0:00:48]} Bg5 {[%emt 0:01:06]} 64. Kd3 {[%emt 0:00:46]} Kc7 {[%emt 0:00:35]} 65. Be1 {[%emt 0:00:15]} Kb7 {[%emt 0:01:37]} 66. Ba5 {[%emt 0:00:16]} Kc8 {[%emt 0:00:56]} 67. Kc2 {[%emt 0:00:39]} Kb7 {[%emt 0:00:25]} 68. Kb3 {[%emt 0:00:29]} Kc8 {[%emt 0:00:36]} 69. Ka3 {[%emt 0:00:28]} Kb7 {[%emt 0:00:30]} 70. Kb3 {[%emt 0:00:49]} Kc8 $1 {[%emt 0:00:08]} 71. Bc3 {[%emt 0:00:36]} Kc7 {[%emt 0:00:54]} 72. Kc2 {[%emt 0:00:27]} Kb7 {[%emt 0:00:23]} 73. Kd3 {[%emt 0:00:06]} Kc7 {[%emt 0:00:12]} 74. Be1 {[%emt 0:00:05]} Kb7 {[%emt 0:00:31]} 75. Bg3 {[%emt 0:00:17]} Kc7 $1 {[%emt 0:00:18]} 76. Ke2 {[%emt 0:00:23]} ({White should play} 76. Na5 $16) 76... Kb7 {[%emt 0:00:22]} (76... Kd7 $1 $11) 77. Na5+ {[%emt 0:00:29]} Kb6 {[%emt 0:01:04]} 78. Nb3 {[%emt 0:00:03]} Kc7 {[%emt 0:00:39]} 79. Bf2 {[%emt 0:00:15]} Kb6 {[%emt 0:00:24]} 80. Kd3 {[%emt 0:00:06]} Be7 {[%emt 0:00:34]} 81. Be3 {[%emt 0:00:32]} g5 {[%emt 0:00:09]} (81... Bg5 $142 82. Bf2 Bf4) 82. Nd2 {[%emt 0:00:36]} Bf8 {[%emt 0:00:43]} (82... Kc7 $16 83. Nf1 Nh8) 83. Nf1 $18 {[%emt 0:00:05]} Bg7 {[%emt 0:00:16]} 84. Ng3 {[%emt 0:00:08]} Kb7 {[%emt 0:00:48]} 85. Nf5 {[%emt 0:00:07]} Bf8 {[%emt 0:00:31]} 86. Bd2 {[%emt 0:00:15]} Kb6 {[%emt 0:00:28]} 87. Ke2 {[%emt 0:01:55]} Kc7 {[%emt 0:00:23]} 88. Ba5+ {[%emt 0:00:58]} Kb7 {[%emt 0:00:18]} 89. Kd3 {[%emt 0:00:27]} Kc8 {[%emt 0:00:29]} 90. Kc3 {[%emt 0:00:13]} Kb7 {[%emt 0:00:25]} 91. Kb3 {[%emt 0:00:06]} Ka7 {[%emt 0:00:24]} 92. Ne3 {[%emt 0:00:08]} Kb7 {[%emt 0:00:12]} 93. Nd1 {[%emt 0:00:03]} Be7 {[%emt 0:00:22]} 94. Nb2 {[%emt 0:00:17]} Bf8 {[%emt 0:00:20]} (94... Nh8 $16 95. Kc2 Ng6) 95. Na4 {[%emt 0:00:19]} Be7 {[%emt 0:00:37]} 96. Ka3 {[%emt 0:00:09]} Bf6 {[%emt 0:00:29]} 97. Kb3 {[%emt 0:00:51]} Be7 $1 {[%emt 0:00:31]} 98. Ka3 {[%emt 0:00:09]} Bf6 {[%emt 0:00:29] Weighted Error Value: White=0.12 (very precise) /Black=0.16 (very precise)} 1/2-1/2

[Event "Bangabandhu Premier Div League 2022"]
[Site "Dhaka"]
[Date "2022.11.30"]
[Round "1.11"]
[White "Kushagra Mohan"]
[Black "Rahman, Syed Mahfuzur"]
[Result "1-0"]
[ECO "B33"]
[WhiteElo "2390"]
[BlackElo "2130"]
[Annotator "TA"]
[PlyCount "91"]
[EventDate "2022.11.30"]
[EventType "team-tourn"]
[EventCountry "BAN"]
[SourceTitle "playchess.com"]
[Source "ChessBase"]
[SourceQuality "1"]
[TimeControl "40/5400+30:1800+30"]

{[%evp 24,91,20,14,24,8,39,12,11,10,22,6,6,6,5,7,36,22,21,18,65,44,89,56,43,0,56,0,0,-21,36,32,31,33,33,36,41,0,0,0,70,79,72,69,67,52,124,50,185,185,186,164,331,283,721,726,710,639,522,464,588,495,695,690,1937,1513,29973,29974,29966,1454]} 1. e4 {[%emt 0:00:04]} c5 {[%emt 0:00:14]} 2. Nf3 {[%emt 0:00:05]} Nc6 {[%emt 0:00:31]} 3. d4 {[%emt 0:00:05]} cxd4 {[%emt 0:00:04]} 4. Nxd4 {[%emt 0:00:02]} Nf6 {[%emt 0:00:05]} 5. Nc3 {[%emt 0:00:03]} e5 {[%emt 0:00:19]} 6. Ndb5 {[%emt 0:00:03]} d6 {[%emt 0:00:06]} 7. Bg5 {[%emt 0:00:04]} a6 {[%emt 0:00:05]} 8. Na3 {[%emt 0:00:03]} b5 {[%emt 0:00:17]} 9. Nd5 {[%emt 0:00:06]} Be7 {[%emt 0:00:01]} 10. Bxf6 {[%emt 0:00:05]} Bxf6 {[%emt 0:00:05]} 11. c3 {[%emt 0:00:03][%cal Bc2c3,Bc3b4,Bb4b5,Bb5b6][%mdl 32]} Bg5 {[%emt 0:01:48]} 12. Nc2 {[%emt 0:00:07]} Rb8 {[%emt 0:00:02]} 13. a4 {[%emt 0:01:59]} bxa4 {[%emt 0:00:39] B33: Sicilian: Pelikan and Sveshnikov Variations.} 14. Ncb4 {[%emt 0:00:05]} (14. Nce3 $5 {[%cal Rd1a4]}) 14... Nxb4 {[%emt 0:02:13]} 15. cxb4 {[%emt 0:00:02]} (15. Nxb4 $5 {[%cal Rb4c6]} Bd7 16. Bxa6 $11 (16. Qxd6 Be7 $15)) 15... Bd7 {[%emt 0:00:50] The position is equal.} 16. Bxa6 {[%emt 0:00:38][%cal Ob4b5]} O-O {[%emt 0:02:33]} 17. O-O {[%emt 0:01:54]} Bc6 {[%emt 0:05:00]} 18. Rxa4 {[%emt 0:04:31]} Bxa4 {[%emt 0:09:55]} 19. Qxa4 {[%emt 0:00:03]} f5 {[%emt 0:02:28]} 20. b5 {[%emt 0:16:44]} Kh8 {[%emt 0:15:15]} (20... fxe4 {seems wilder.} 21. Qxe4 Qd7 22. b6 Kh8) 21. exf5 {[%emt 0:04:56]} (21. b6 {simplifies} Rxb6 22. Nxb6 Qxb6 23. exf5 d5 24. b4) 21... Rxf5 {[%emt 0:12:14]} (21... Qd7 $11 {is superior.}) 22. b6 $14 {[#]} g6 $146 {[%emt 0:46:46]} ({Predecessor:} 22... Bh4 23. b7 e4 24. Qxe4 Re5 25. Qc4 Qa5 26. Nb4 Bxf2+ 27. Kxf2 Qb6+ 28. Kg3 Qe3+ {0-1 (39) Pahl,E (2203)-Parvanyan,A (2151) Magdeburg 2022}) 23. Qc6 {[%emt 0:20:52][%mdl 1024] White has strong compensation. White is more active.} Qe8 {[%emt 0:00:00]} 24. Qc3 {[%emt 0:17:23]} (24. Qxe8+ {simplifies} Rxe8 25. Rd1 Rb8 26. b4) 24... Rf7 {[%emt 0:00:00]} ({Black should try} 24... Qa4 $11 25. Qc7 Rff8) 25. g3 {[%emt 0:03:55]} ({Better is} 25. b4 $14) 25... Qa4 $11 {[%emt 0:00:00]} 26. Bc4 {[%emt 0:00:34]} Rfb7 {[%emt 0:00:00]} (26... Rff8 $11) 27. b3 $14 {[%emt 0:10:28]} Qc6 {[%emt 0:00:00]} 28. f4 {[%emt 0:01:38][%cal Bf2f4,Bf4f5,Bf5f6,Bf6f7][%mdl 32]} Bh6 {[%emt 0:00:00]} (28... Bd8 $2 29. fxe5 Bxb6+ 30. Kg2 $18) 29. f5 $1 {[%emt 0:01:49]} ({Much weaker is} 29. fxe5 Bg7 $15) 29... Rxb6 {[%emt 0:00:00]} 30. Qd3 {[%emt 0:02:06]} Qc5+ {[%emt 0:01:37]} 31. Kg2 {[%emt 0:00:38]} Qd4 {[%emt 0:01:28]} 32. Qxd4 {[%emt 0:01:03]} exd4 {[%emt 0:00:01]} 33. Nxb6 {[%emt 0:00:02]} Rxb6 {[%emt 0:00:03][%mdl 4096] Endgame KRB-KRB} 34. f6 {[%emt 0:04:49] Against d5} Rb8 {[%emt 0:00:41]} (34... d5 $14 35. Bxd5 Rd6) 35. h4 {[%emt 0:02:01]} (35. Rd1 $16) 35... Be3 {[%emt 0:01:08] A mistake that costs the game.} (35... d5 $1 $14 36. Bxd5 Rd8) 36. Kf3 $18 {[%emt 0:02:03]} Re8 {[%emt 0:00:44]} 37. g4 {[%emt 0:01:02]} g5 $2 {[%emt 0:00:47] [#]} (37... Bd2 38. f7 Rf8) 38. h5 {[%emt 0:00:51]} h6 $2 {[%emt 0:00:57]} (38... d5) 39. f7 {[%emt 0:03:00]} Rb8 {[%emt 0:00:31]} 40. Ke4 {[%emt 0:00:22]} Kg7 {[%emt 0:00:08] Prevents f8R.} 41. Rf5 {[%emt 0:31:14]} Rc8 {[%emt 0:30:51]} 42. Bd5 {[%emt 0:01:30]} Rb8 {[%emt 0:00:29]} (42... Bd2 $142 43. Kxd4 Rb8) 43. b4 {[%emt 0:00:31][%cal Bb3b4,Bb4b5][%mdl 32] [#] Black must now prevent b5!} Bg1 {[%emt 0:00:31] Prevents b5.} 44. Kd3 {[%emt 0:01:44] Strongly threatening Rf1.} Rd8 {[%emt 0:00:32]} 45. b5 {[%emt 0:00:09]} Kf8 {[%emt 0:00:11]} 46. Rf6 {[%emt 0:00:05] Weighted Error Value: White=0.18 (very precise) /Black=0.59} (46. b6 $142 Bh2 47. Rf6 Rd7 48. Rxh6 (48. Kxd4 $2 {too greedy.} Be5+ 49. Kc4 Bxf6 $19) 48... Be5 49. Rg6 Rxf7 50. Bxf7 Kxf7 51. Rxg5) 1-0

[Event "Bangabandhu Premier Div League 2022"]
[Site "Dhaka"]
[Date "2022.11.30"]
[Round "1.12"]
[White "Mohammad Nubairshah Shaikh"]
[Black "Jabed Al Azad"]
[Result "1-0"]
[ECO "D02"]
[WhiteElo "2439"]
[BlackElo "2084"]
[Annotator "TA"]
[PlyCount "75"]
[EventDate "2022.11.30"]
[EventType "team-tourn"]
[EventCountry "BAN"]
[SourceTitle "playchess.com"]
[Source "ChessBase"]
[SourceQuality "1"]
[TimeControl "40/5400+30:1800+30"]

{[%evp 9,75,41,37,27,36,32,49,47,42,37,42,32,68,41,62,22,50,58,89,89,89,85,97,51,52,50,168,156,160,144,126,137,173,179,151,158,181,137,147,139,456,435,401,388,399,326,458,453,425,439,593,587,752,753,725,704,758,759,1147,1125,1106,1061,1770,1700,3241,3085,29981,29981]} 1. Nf3 {[%emt 0:00:04]} d5 {[%emt 0:00:06]} 2. g3 {[%emt 0:00:05]} Nd7 {[%emt 0:00:22]} 3. d4 {[%emt 0:00:04]} Ngf6 {[%emt 0:00:31]} 4. Bg2 {[%emt 0:00:17]} Nb6 {[%emt 0:00:37]} 5. a4 {[%emt 0:01:06]} a5 {[%emt 0:00:38]} 6. O-O {[%emt 0:00:04] D02: 1 d4 d5 2 Nf3 sidelines, including 2...Nf6 3 g3 and 2...Nf6 3 Bf4.} Bf5 {[%emt 0:00:21]} 7. Nh4 {[%emt 0:03:41]} e6 {[%emt 0:04:34]} 8. Nxf5 {[%emt 0:02:49] White is slightly better.} exf5 {[%emt 0:00:03] [#]} 9. Qd3 $146 {[%emt 0:00:02]} ({Predecessor:} 9. Bg5 Be7 10. Bxf6 Bxf6 11. e3 h5 12. Nd2 h4 13. c4 c6 14. Qb3 dxc4 15. Nxc4 Nxc4 16. Qxc4 {0-1 (64) Rakhmanov,A (2640)-Alekseenko,K (2702) Chess.com INT 2022}) 9... Qd7 {[%emt 0:01:19]} 10. b3 {[%emt 0:00:20]} g6 {[%emt 0:02:47]} 11. Nd2 {[%emt 0:05:03]} c6 {[%emt 0:02:00]} 12. f3 {[%emt 0:10:43]} h5 {[%emt 0:07:46]} 13. e4 {[%emt 0:03:04]} f4 {[%emt 0:05:55]} 14. e5 {[%emt 0:17:46]} Ng8 {[%emt 0:00:16]} 15. gxf4 {[%emt 0:00:35]} h4 {[%emt 0:01:13]} 16. f5 {[%emt 0:13:16]} ({White should play} 16. h3 $16) 16... h3 $14 {[%emt 0:01:47]} 17. Bh1 $36 {[%emt 0:05:33][%mdl 2048] Black is under pressure.} Ne7 {[%emt 0:04:43] [#]} (17... Qxf5 $14 18. Qxf5 gxf5) 18. f6 $1 $18 {[%emt 0:03:19]} Nf5 {[%emt 0:02:58]} 19. c3 {[%emt 0:01:23]} Rh4 {[%emt 0:02:39]} 20. f4 {[%emt 0:11:20]} Bh6 {[%emt 0:06:06] [#]} 21. Nf3 $1 {[%emt 0:00:36]} Rg4+ {[%emt 0:00:42]} 22. Kf2 {[%emt 0:00:02][%cal Oe5e6] Black must now prevent e6!} Bxf4 {[%emt 0:00:26]} 23. Bxf4 {[%emt 0:00:13] Really sharp!} Rxf4 {[%emt 0:00:02]} 24. Qd2 {[%emt 0:00:01]} g5 {[%emt 0:01:02][%mdl 8192] Loses the game.} (24... Re4 $16 {is more resistant.}) 25. Rg1 {[%emt 0:00:12]} O-O-O {[%emt 0:10:14][%cal Of5d6]} 26. Rxg5 {[%emt 0:00:03]} Re4 27. Re1 {[%emt 0:09:22] Prevents Ne3.} Rh8 {[%emt 0:02:14]} (27... Nh6 {was necessary.} 28. Rxe4 dxe4) 28. Rxe4 {[%emt 0:01:56] Active counter play!} dxe4 {[%emt 0:00:03]} 29. Qf4 {[%emt 0:00:02][%csl LRe4,LRf5]} exf3 {[%emt 0:02:24]} 30. Qxf5 {[%emt 0:00:10]} Nd5 {[%emt 0:02:21]} 31. Qxd7+ {[%emt 0:01:03]} Kxd7 {[%emt 0:00:02][%mdl 4096] Endgame KRB-KRN} 32. c4 {[%emt 0:00:02]} Nf4 {[%emt 0:04:25]} 33. Bxf3 {[%emt 0:00:13]} c5 {[%emt 0:04:44]} 34. d5 {[%emt 0:13:01]} Re8 {[%emt 0:01:10]} 35. Be4 {[%emt 0:00:00]} Rh8 {[%emt 0:03:21]} 36. Kf3 {[%emt 0:01:00]} Ng2 {[%emt 0:02:39]} 37. Rg7 {[%emt 0:00:00]} Ke8 {[%emt 0:01:02]} 38. e6 {[%emt 0:00:00] Weighted Error Value: White=0.14 (very precise) /Black=0.85} 1-0

[Event "Bangabandhu Premier Div League 2022"]
[Site "Dhaka"]
[Date "2022.11.30"]
[Round "1.13"]
[White "Murshed, Niaz"]
[Black "Md, Mesbah Uddin"]
[Result "1-0"]
[ECO "D07"]
[WhiteElo "2419"]
[BlackElo "1778"]
[Annotator "TA"]
[PlyCount "111"]
[EventDate "2022.11.30"]
[EventType "team-tourn"]
[EventCountry "BAN"]
[SourceTitle "playchess.com"]
[Source "ChessBase"]
[SourceQuality "1"]
[TimeControl "40/5400+30:1800+30"]

{[%evp 9,111,99,128,120,222,102,151,121,121,112,115,97,162,155,149,156,158,152,162,137,237,176,233,225,224,185,290,270,370,53,53,77,85,83,125,125,123,101,127,128,120,92,163,0,111,0,156,172,168,150,152,109,112,89,237,237,497,481,637,0,310,0,641,632,605,0,592,0,737,735,711,678,671,645,1109,1131,1077,1112,1108,1106,1461,1228,1427,0,1279,0,1864,0,1074,0,1869,1968,5065,0,1586,0,2421,0,1269,0,2457,2344,2023,1869]} 1. Nf3 {[%emt 0:00:05]} Nc6 {[%emt 0:00:14]} 2. d4 {[%emt 0:00:14]} d5 {[%emt 0:00:28]} 3. c4 {[%emt 0:00:07]} Nf6 {[%emt 0:00:36]} 4. cxd5 Qxd5 {[%emt 0:01:59]} 5. Nc3 {[%emt 0:00:43]} Qh5 6. e4 {[%emt 0:05:35][%cal Be2e4,Be4e5][%mdl 32] Black must now prevent Nb5. D07: Queen's Gambit: Chigorin Defence.} Bg4 (6... e5 $16) 7. Be2 (7. Qb3 $1 $18 {[%cal Rb3b7] has better winning chances.} Nd8 8. Ne5) 7... e6 {[%emt 0:11:23] [#]} (7... O-O-O $142) 8. e5 $146 {White is clearly better.} ({Predecessor:} 8. Qa4 Bb4 9. O-O Bxc3 10. bxc3 Nxe4 11. Qc2 Nf6 12. h3 Bf5 13. Qb2 Rb8 14. Ne5 Bg4 15. hxg4 Qh4 16. Nxc6 {1-0 (16) Kerr,B (1903)-Zorkovic,A (1525) Adelaide 2009}) 8... Nd5 9. Nxd5 {[%emt 0:03:16]} exd5 {[%emt 0:00:43]} 10. O-O {[%emt 0:00:14]} Qf5 (10... Qg6 $16 {was worth a try.}) 11. h3 $18 {[%emt 0:04:06]} Bxf3 {[%emt 0:09:16]} 12. Bxf3 {[%emt 0:00:05]} Qd7 13. Be3 {[%emt 0:02:21]} Ne7 14. Bg4 {[%emt 0:02:09]} Qc6 (14... Nf5 $16 {was necessary.} 15. Bg5 c6) 15. a4 {[%emt 0:14:08]} a5 (15... Qg6 {was called for.} 16. h4 h5) 16. Rc1 {[%emt 0:00:02]} Qb6 {[%emt 0:10:22]} 17. f4 {[%emt 0:00:13]} g6 {[%emt 1:03:59]} (17... h5 {might work better.}) 18. f5 {[%emt 0:02:55]} h5 {[%emt 0:00:30]} 19. f6 $2 {[%emt 0:04:33]} ({White has to play} 19. fxg6 $1 $18 hxg4 20. gxf7+ (20. Rxf7 $2 {loses.} Qxg6 21. Rf2 gxh3 $19) 20... Kd8 21. Qxg4) 19... Nc6 $14 {[%emt 0:00:30]} 20. Bf3 {[%emt 0:02:53]} O-O-O {[%emt 0:00:30] Strongly threatening ...Nxe5.} 21. Qd2 Qb4 {[%emt 0:00:00]} 22. Qxb4 {[%emt 0:06:07]} Nxb4 23. Be2 {[%emt 0:01:36] White has more active pieces. The black rooks are badly placed.} Bh6 {[%emt 0:00:00]} 24. Bxh6 {[%emt 0:02:40]} Rxh6 {[%emt 0:00:00]} 25. Kf2 {[%emt 0:01:51]} Rhh8 {[%emt 0:00:00]} (25... Rg8 $16) 26. Kg1 {[%emt 0:47:37]} (26. g4 $1 $18) 26... Rh6 $1 $16 {[%emt 0:00:00]} 27. Kf2 {[%emt 0:00:00]} Rhh8 $1 {[#]} 28. g4 $1 hxg4 {[%emt 0:00:00]} 29. Bxg4+ {[%emt 0:00:00]} Kb8 30. Ke3 {[%emt 0:00:00] Against Nd3} c6 {[%emt 0:00:00]} 31. Rfd1 {[%emt 0:00:00]} Kc7 {[%emt 0:00:00] [#]} (31... g5 $16) 32. Kf4 $1 $18 {[%emt 0:00:00]} Na6 $2 (32... g5+ 33. Kxg5 Rdg8+ 34. Kf4 b6) 33. Kg5 {[%emt 0:00:00]} Rhg8 {[%emt 0:00:00]} 34. Kf4 {[%emt 0:00:00]} (34. e6 $142) 34... Rh8 $1 35. Kg5 $2 (35. Re1) 35... Rhg8 $1 {[%emt 0:07:30]} 36. Re1 {[%emt 0:00:00]} Rh8 {[%emt 0:00:00]} 37. Red1 Rhg8 $1 38. Re1 $2 {[%emt 0:00:00] Inhibits c5.} (38. e6 $18) 38... Nb4 $2 {[%mdl 8192]} (38... Rh8 $11 39. e6 fxe6 40. Rxe6 Rdf8 41. Re7+ Kb6) 39. e6 {[%emt 0:06:30]} fxe6 {[%emt 0:02:00]} 40. Rxe6 {[%emt 0:00:30]} Nd3 {[%emt 0:00:30]} 41. Re7+ {[%emt 0:30:30]} Kb6 {[%emt 0:30:30]} 42. Rc3 {[%emt 0:00:30]} Nb4 {[%emt 0:00:00]} 43. f7 {[%emt 0:00:00]} Rgf8 {[%emt 0:00:00]} 44. Kxg6 {[%emt 0:01:00]} Ka7 {[%emt 0:00:00]} 45. Kg7 {[%emt 0:00:00]} Kb6 {[%emt 0:02:00]} 46. Kg6 Ka7 $1 {[%emt 0:00:00]} 47. Kg7 (47. h4 $18 Kb8 48. h5) 47... Kb8 $2 {[%emt 0:00:00][%mdl 8192]} (47... Kb6 $11 48. h4 Rh8) 48. Kg6 {[%emt 0:00:00]} Ka7 $1 {[%emt 0:00:00]} 49. Kg7 (49. h4 $18 Kb6 50. h5) 49... Kb8 $2 {[%emt 0:00:00][%mdl 8192]} (49... Kb6 $11 50. h4 Ka6) 50. Rd7 {[%emt 0:00:00] White threatens Rxd8+ and mate.} Ka7 {[%emt 0:00:00]} 51. Re7 $2 (51. Rxd8 $18 Rxd8 52. f8=Q Rxf8 53. Kxf8) 51... Kb8 $2 {[%emt 0:00:00][%mdl 8192]} (51... Kb6 $11 52. h4 Na6) 52. Rd7 $2 {[%emt 0:00:00]} (52. h4 $18 Na6 53. Rd7) 52... Rc8 $2 {[%emt 0:00:00][%mdl 8192]} (52... Ka7 $11 53. Rxd8 Rxd8) 53. Re7 {[%emt 0:00:00]} Rcd8 {[%emt 0:00:00]} 54. Rd7 $2 {[%emt 0:00:00]} ({Better is} 54. h4 $18 Na6 55. Rd7) 54... Rc8 $2 {[%emt 0:00:00][%mdl 8192] [#]} (54... Ka7 $11 55. Rxd8 Rxd8) 55. Rxb7+ $3 {[%emt 0:00:00][%mdl 512]} Kxb7 {[%emt 0:00:00]} 56. Bxc8+ {[%emt 0:00:00] Weighted Error Value: White=1.54/Black=0.39} 1-0